[Event "British Championship 2024"]
[Site "Hull"]
[Date "2024.07.31"]
[Round "3.29"]
[White "Mitchell, Martin"]
[Black "Pein, Jonathan"]
[Result "1/2-1/2"]
[Annotator "RC"]
[ECO "D02"]
[WhiteElo "2159"]
[BlackElo "2279"]
[PlyCount "56"]
[EventDate "2024.07.31"]
[EventCountry "GBR"]
[SourceTitle "playchess.com"]
[Source "ChessBase"]
[SourceQuality "1"]
[TimeControl "40/5400+30:1800+30"]

1. d4 {[%emt 0:00:06]} d5 {[%emt 0:00:03]} 2. Nf3 {[%emt 0:00:18]} Nf6 {[%emt 0:00:09]} 3. Bf4 {[%emt 0:00:15]} c5 {[%emt 0:00:33]} 4. e3 {[%emt 0:00:57]} Qb6 {[%emt 0:00:13]} 5. Nc3 {[%emt 0:05:14]} a6 {[%emt 0:00:33]} 6. dxc5 {[%emt 0:08:33]} Qxc5 {[%emt 0:02:39]} 7. Bd3 {[%emt 0:02:04]} g6 {[%emt 0:01:29]} 8. O-O {[%emt 0:10:09]} Bg7 {[%emt 0:00:06]} 9. Na4 {[%emt 0:01:34]} Qa5 {[%emt 0:08:45]} 10. c4 {[%emt 0:02:32]} Bg4 {[%emt 0:06:39]} 11. Nc3 {[%emt 0:05:56]} Nc6 {[%emt 0:02:21]} 12. h3 {[%emt 0:01:40]} dxc4 {[%emt 0:08:02]} 13. Bxc4 {[%emt 0:00:18]} Bxf3 {[%emt 0:04:45]} 14. Qxf3 {[%emt 0:00:12]} O-O {[%emt 0:00:20]} 15. Rac1 {[%emt 0:06:55]} Rac8 {[%emt 0:11:35]} 16. Bb3 {[%emt 0:09:20]} Qb4 {[%emt 0:02:26]} 17. Nd5 {[%emt 0:14:45]} Nxd5 {[%emt 0:00:39]} 18. Bxd5 {[%emt 0:03:54]} Ne5 {[%emt 0:30:45]} 19. Bxe5 {[%emt 0:03:02]} Rxc1 {[%emt 0:00:14]} 20. Rxc1 {[%emt 0:00:06]} Bxe5 {[%emt 0:00:10]} 21. b3 {[%emt 0:03:23]} Qd2 {[%emt 0:03:03]} 22. Qd1 {[%emt 0:01:45]} Qxa2 {[%emt 0:03:26]} 23. Bxb7 {[%emt 0:00:14]} a5 {[%emt 0:01:52]} 24. Qc2 {[%emt 0:01:41]} Qxc2 {[%emt 0:05:49]} 25. Rxc2 {[%emt 0:00:05]} Rb8 {[%emt 0:00:05]} 26. Rc8+ {[%emt 0:01:05]} Kg7 {[%emt 0:00:16]} 27. Rxb8 {[%emt 0:00:42]} Bxb8 {[%emt 0:00:02]} 28. Kf1 {[%emt 0:01:39]} f5 {[%emt 0:00:49]} 1/2-1/2

[Event "British Championship 2024"]
[Site "Hull"]
[Date "2024.07.31"]
[Round "3.31"]
[White "Boswell, Jacob Connor"]
[Black "Lentzos, Ioanis"]
[Result "1-0"]
[Annotator "RC"]
[ECO "B41"]
[WhiteElo "2274"]
[BlackElo "2119"]
[PlyCount "111"]
[EventDate "2024.07.31"]
[EventCountry "GBR"]
[SourceTitle "playchess.com"]
[Source "ChessBase"]
[SourceQuality "1"]
[TimeControl "40/5400+30:1800+30"]

1. e4 {[%emt 0:04:38]} c5 {[%emt 0:00:13]} 2. Nf3 {[%emt 0:00:14]} e6 {[%emt 0:00:11]} 3. d4 {[%emt 0:00:10]} cxd4 {[%emt 0:00:18]} 4. Nxd4 {[%emt 0:00:07]} a6 {[%emt 0:00:24]} 5. c4 {[%emt 0:00:08]} Nf6 {[%emt 0:00:07]} 6. Nc3 {[%emt 0:00:07]} Qc7 {[%emt 0:00:10]} 7. a3 {[%emt 0:00:18]} b6 {[%emt 0:00:22]} 8. f4 {[%emt 0:01:14]} d6 {[%emt 0:08:27]} 9. Bd3 {[%emt 0:02:32]} Bb7 {[%emt 0:04:27]} 10. O-O {[%emt 0:02:20]} g6 {[%emt 0:07:50]} 11. f5 {[%emt 0:20:13]} gxf5 {[%emt 0:00:17]} 12. Bg5 {[%emt 0:18:15]} Nbd7 {[%emt 0:02:53]} 13. exf5 {[%emt 0:04:59]} Qc5 {[%emt 0:39:41]} 14. fxe6 {[%emt 0:12:25]} Qxg5 {[%emt 0:08:00]} 15. exd7+ {[%emt 0:00:21]} Kxd7 {[%emt 0:00:18]} 16. Bf5+ {[%emt 0:18:02]} Kc7 {[%emt 0:01:04]} 17. Nd5+ {[%emt 0:01:17]} Kb8 {[%emt 0:04:24]} 18. Qb3 {[%emt 0:01:16]} Rg8 {[%emt 0:01:54]} 19. Rf2 {[%emt 0:01:11]} Nxd5 {[%emt 0:05:39]} 20. cxd5 {[%emt 0:00:02]} b5 {[%emt 0:01:45]} 21. Nc6+ {[%emt 0:01:14]} Bxc6 {[%emt 0:00:01]} 22. dxc6 {[%emt 0:00:01]} Kc7 {[%emt 0:00:16]} 23. Qxf7+ {[%emt 0:05:55]} Be7 {[%emt 0:00:08]} 24. a4 {[%emt 0:01:22]} Rg7 {[%emt 0:00:55]} 25. Qd5 {[%emt 0:00:30]} Qe3 {[%emt 0:01:19]} 26. axb5 {[%emt 0:00:46]} Bh4 {[%emt 0:00:36]} 27. g3 {[%emt 0:01:13]} Re8 {[%emt 0:02:23]} 28. Qf3 {[%emt 0:01:30]} Qd4 {[%emt 0:01:53]} 29. Rd1 {[%emt 0:00:40]} Qc5 {[%emt 0:00:44]} 30. Qd5 {[%emt 0:01:34]} Re1+ {[%emt 0:08:00]} 31. Kg2 {[%emt 0:00:01]} Qxd5+ {[%emt 0:00:01]} 32. Rxd5 {[%emt 0:00:02]} axb5 {[%emt 0:00:30]} 33. Bd7 {[%emt 0:00:12]} Re5 {[%emt 0:00:21]} 34. Rxe5 {[%emt 0:00:39]} dxe5 {[%emt 0:00:04]} 35. Rf5 {[%emt 0:00:02]} Kd6 {[%emt 0:00:29]} 36. Rxe5 {[%emt 0:00:41]} Kxe5 {[%emt 0:01:39]} 37. c7 {[%emt 0:00:10]} Rxd7 {[%emt 0:00:03]} 38. c8=Q {[%emt 0:00:06]} Rd2+ {[%emt 0:00:02]} 39. Kf3 {[%emt 0:01:05]} Bg5 {[%emt 0:00:29]} 40. h4 {[%emt 0:01:53]} Rd3+ {[%emt 0:01:22]} 41. Kg4 {[%emt 0:04:56]} Be3 {[%emt 0:09:20]} 42. Qf5+ {[%emt 0:00:45]} Kd4 {[%emt 0:00:04]} 43. Qxb5 {[%emt 0:01:46]} Rd2 {[%emt 0:00:00]} 44. Qd7+ {[%emt 0:02:34]} Kc4 {[%emt 0:00:33]} 45. Qe6+ {[%emt 0:00:14]} Kd4 {[%emt 0:00:41]} 46. b4 {[%emt 0:00:40]} Kd3 {[%emt 0:02:44]} 47. Qb3+ {[%emt 0:03:13]} Ke4 {[%emt 0:06:49]} 48. b5 {[%emt 0:01:26]} h5+ {[%emt 0:04:04]} 49. Kxh5 {[%emt 0:02:04]} Kf3 {[%emt 0:00:41]} 50. b6 {[%emt 0:02:59]} Rd6 {[%emt 0:00:42]} 51. Qf7+ {[%emt 0:03:34]} Kxg3 {[%emt 0:00:16]} 52. Qg7+ {[%emt 0:03:08]} Kf3 {[%emt 0:00:23]} 53. b7 {[%emt 0:02:15]} Bf4 {[%emt 0:04:04]} 54. Qg4+ {[%emt 0:00:27]} Ke4 {[%emt 0:00:16]} 55. Qxf4+ {[%emt 0:00:07]} Kxf4 {[%emt 0:00:07]} 56. b8=Q {[%emt 0:00:06]} 1-0

[Event "British Championship 2024"]
[Site "Hull"]
[Date "2024.07.31"]
[Round "3.32"]
[White "Verbytski, Oleg"]
[Black "Villiers, Thomas"]
[Result "1/2-1/2"]
[Annotator "RC"]
[ECO "C08"]
[WhiteElo "2008"]
[BlackElo "2229"]
[PlyCount "129"]
[EventDate "2024.07.31"]
[EventCountry "GBR"]
[SourceTitle "playchess.com"]
[Source "ChessBase"]
[SourceQuality "1"]
[TimeControl "40/5400+30:1800+30"]

1. e4 {[%emt 0:00:02]} e6 {[%emt 0:00:07]} 2. d4 {[%emt 0:00:04]} d5 {[%emt 0:00:07]} 3. Nd2 {[%emt 0:00:01]} c5 {[%emt 0:00:11]} 4. exd5 {[%emt 0:00:04]} exd5 {[%emt 0:00:21]} 5. Ngf3 {[%emt 0:00:16]} Nf6 {[%emt 0:00:19]} 6. Bb5+ {[%emt 0:00:37]} Bd7 {[%emt 0:00:18]} 7. Bxd7+ {[%emt 0:00:26]} Qxd7 {[%emt 0:00:17]} 8. O-O {[%emt 0:00:22]} c4 {[%emt 0:00:41]} 9. c3 {[%emt 0:00:53]} Be7 {[%emt 0:01:13]} 10. Re1 {[%emt 0:08:21]} O-O {[%emt 0:00:57]} 11. Nf1 {[%emt 0:00:11]} Nc6 {[%emt 0:04:12]} 12. Ng3 {[%emt 0:01:17]} Rfe8 {[%emt 0:01:10]} 13. Bf4 {[%emt 0:04:53]} Bd6 {[%emt 0:05:36]} 14. Bxd6 {[%emt 0:02:49]} Qxd6 {[%emt 0:00:39]} 15. b4 {[%emt 0:03:28]} Qf4 {[%emt 0:04:19]} 16. Qd2 {[%emt 0:11:16]} Qxd2 {[%emt 0:01:06]} 17. Nxd2 {[%emt 0:00:05]} Ne7 {[%emt 0:00:54]} 18. a4 {[%emt 0:11:02]} Kf8 {[%emt 0:01:58]} 19. Ngf1 {[%emt 0:02:21]} Nf5 {[%emt 0:00:45]} 20. f3 {[%emt 0:01:21]} a5 {[%emt 0:01:26]} 21. b5 {[%emt 0:01:56]} Nd7 {[%emt 0:00:15]} 22. Kf2 {[%emt 0:03:12]} Nb6 {[%emt 0:01:38]} 23. Ne3 {[%emt 0:04:13]} Rxe3 {[%emt 0:01:26]} 24. Rxe3 {[%emt 0:00:07]} Nxe3 {[%emt 0:00:06]} 25. Kxe3 {[%emt 0:00:05]} Re8+ {[%emt 0:00:08]} 26. Kf2 {[%emt 0:00:10]} Re6 {[%emt 0:00:33]} 27. Nf1 {[%emt 0:01:05]} Rh6 {[%emt 0:04:38]} 28. Ra2 {[%emt 0:05:30]} Re6 {[%emt 0:00:29]} 29. Ra1 {[%emt 0:00:08]} h5 {[%emt 0:00:16]} 30. Ng3 {[%emt 0:02:14]} g6 {[%emt 0:01:12]} 31. Nf1 {[%emt 0:00:42]} Kg7 {[%emt 0:00:16]} 32. Ne3 {[%emt 0:00:40]} Rd6 {[%emt 0:00:15]} 33. Ra2 {[%emt 0:02:02]} Rd8 {[%emt 0:00:47]} 34. Ra1 {[%emt 0:00:44]} Kf6 {[%emt 0:00:12]} 35. Ra2 {[%emt 0:02:09]} Kg5 {[%emt 0:00:28]} 36. Ra1 {[%emt 0:00:58]} Rd7 {[%emt 0:00:34]} 37. Ra2 {[%emt 0:01:09]} h4 {[%emt 0:04:46]} 38. Ra1 {[%emt 0:02:01]} Rd8 {[%emt 0:03:39]} 39. Ra2 {[%emt 0:01:17]} Kf6 {[%emt 0:00:17]} 40. Ra1 {[%emt 0:00:58]} Ke6 {[%emt 0:00:10]} 41. Ra2 {[%emt 0:33:01]} Rh8 {[%emt 0:34:01]} 42. h3 {[%emt 0:11:21]} Rd8 {[%emt 0:03:17]} 43. Ra1 {[%emt 0:01:13]} Kf6 {[%emt 0:00:34]} 44. Ra2 {[%emt 0:05:17]} Kg5 {[%emt 0:00:21]} 45. Ng4 {[%emt 0:02:07]} Re8 {[%emt 0:01:48]} 46. Ne3 {[%emt 0:03:09]} Re6 {[%emt 0:01:58]} 47. Ra1 {[%emt 0:05:00]} Kf4 {[%emt 0:00:33]} 48. Nf1 {[%emt 0:00:25]} Nd7 {[%emt 0:01:24]} 49. Ra2 {[%emt 0:00:47]} Nf6 {[%emt 0:01:34]} 50. Rb2 {[%emt 0:00:00]} Nh5 {[%emt 0:00:00]} 51. Re2 {[%emt 0:00:00]} Rxe2+ {[%emt 0:00:00]} 52. Kxe2 {[%emt 0:00:00]} Ng3+ {[%emt 0:00:00]} 53. Nxg3 {[%emt 0:00:00]} Kxg3 {[%emt 0:00:00]} 54. Kf1 {[%emt 0:00:00]} b6 {[%emt 0:00:00]} 55. Kg1 {[%emt 0:00:00]} g5 {[%emt 0:00:00]} 56. Kf1 {[%emt 0:00:00]} f5 {[%emt 0:00:00]} 57. Kg1 {[%emt 0:00:00]} g4 {[%emt 0:00:00]} 58. hxg4 {[%emt 0:00:00]} fxg4 {[%emt 0:00:00]} 59. fxg4 {[%emt 0:00:00]} Kxg4 {[%emt 0:00:00]} 60. Kf2 {[%emt 0:00:00]} Kf4 {[%emt 0:00:00]} 61. Ke2 {[%emt 0:00:00]} Kg3 {[%emt 0:00:00]} 62. Kf1 {[%emt 0:00:00]} h3 {[%emt 0:00:00]} 63. gxh3 {[%emt 0:00:00]} Kxh3 {[%emt 0:00:00]} 64. Kf2 {[%emt 0:00:00]} Kg4 {[%emt 0:00:00]} 65. Kg2 {[%emt 0:00:00]} 1/2-1/2

[Event "British Championship 2024"]
[Site "Hull"]
[Date "2024.07.31"]
[Round "3.33"]
[White "Shafi, Declan"]
[Black "Verma, Shlok"]
[Result "1-0"]
[Annotator "RC"]
[ECO "D36"]
[WhiteElo "2222"]
[BlackElo "2102"]
[PlyCount "77"]
[EventDate "2024.07.31"]
[EventCountry "GBR"]
[SourceTitle "playchess.com"]
[Source "ChessBase"]
[SourceQuality "1"]
[TimeControl "40/5400+30:1800+30"]

1. c4 {[%emt 0:00:03]} e6 {[%emt 0:00:26]} 2. Nc3 {[%emt 0:00:09]} d5 {[%emt 0:00:07]} 3. d4 {[%emt 0:00:06]} Nf6 {[%emt 0:00:09]} 4. cxd5 {[%emt 0:00:12]} exd5 {[%emt 0:00:09]} 5. Bg5 {[%emt 0:00:09]} c6 {[%emt 0:00:27]} 6. Qc2 {[%emt 0:00:09]} h6 {[%emt 0:00:12]} 7. Bh4 {[%emt 0:00:10]} Be7 {[%emt 0:00:32]} 8. e3 {[%emt 0:00:14]} O-O {[%emt 0:00:13]} 9. Bd3 {[%emt 0:00:19]} Re8 {[%emt 0:00:06]} 10. Nf3 {[%emt 0:01:39]} Ne4 {[%emt 0:00:25]} 11. Bxe7 {[%emt 0:04:27]} Qxe7 {[%emt 0:00:03]} 12. O-O {[%emt 0:00:32]} Bf5 {[%emt 0:00:38]} 13. Rae1 {[%emt 0:03:46]} Nd7 {[%emt 0:01:17]} 14. Nd2 {[%emt 0:01:59]} Rad8 {[%emt 0:25:28]} 15. Nb3 {[%emt 0:05:24]} Nxc3 {[%emt 0:14:17]} 16. Bxf5 {[%emt 0:02:41]} Nb5 {[%emt 0:07:20]} 17. Bh7+ {[%emt 0:08:05]} Kh8 {[%emt 0:00:10]} 18. Bd3 {[%emt 0:00:06]} Qb4 {[%emt 0:00:15]} 19. Ra1 {[%emt 0:16:52]} Nd6 {[%emt 0:01:46]} 20. a4 {[%emt 0:02:41]} Rc8 {[%emt 0:05:50]} 21. Rfc1 {[%emt 0:04:47]} b6 {[%emt 0:03:43]} 22. Qc3 {[%emt 0:09:16]} Qxc3 {[%emt 0:03:46]} 23. Rxc3 {[%emt 0:00:37]} a5 {[%emt 0:12:35]} 24. Rac1 {[%emt 0:05:36]} Nb8 {[%emt 0:00:09]} 25. Nd2 {[%emt 0:00:13]} Rc7 {[%emt 0:04:37]} 26. Nf3 {[%emt 0:02:35]} Rec8 {[%emt 0:00:41]} 27. Ne5 {[%emt 0:00:53]} c5 {[%emt 0:00:48]} 28. Be2 {[%emt 0:02:19]} f6 {[%emt 0:03:18]} 29. Ng6+ {[%emt 0:07:52]} Kg8 {[%emt 0:00:37]} 30. Nf4 {[%emt 0:01:33]} Ne4 {[%emt 0:00:09]} 31. R3c2 {[%emt 0:00:37]} Rc6 {[%emt 0:01:24]} 32. f3 {[%emt 0:03:01]} Nd6 {[%emt 0:02:45]} 33. Nxd5 {[%emt 0:00:15]} Kf7 {[%emt 0:00:05]} 34. dxc5 {[%emt 0:01:55]} Rxc5 {[%emt 0:01:25]} 35. Rxc5 {[%emt 0:00:11]} bxc5 {[%emt 0:00:24]} 36. Nb6 {[%emt 0:01:24]} Rc6 {[%emt 0:01:49]} 37. Nc4 {[%emt 0:00:08]} Nb7 {[%emt 0:00:22]} 38. f4 {[%emt 0:01:07]} Na6 {[%emt 0:00:50]} 39. Bf3 {[%emt 0:00:14]} 1-0

[Event "British Championship 2024"]
[Site "Hull"]
[Date "2024.07.31"]
[Round "3.34"]
[White "Ledger, Dave J"]
[Black "Pal, Rohan"]
[Result "1/2-1/2"]
[Annotator "RC"]
[ECO "B47"]
[WhiteElo "2201"]
[BlackElo "2097"]
[PlyCount "73"]
[EventDate "2024.07.31"]
[EventCountry "GBR"]
[SourceTitle "playchess.com"]
[Source "ChessBase"]
[SourceQuality "1"]
[TimeControl "40/5400+30:1800+30"]

1. e4 {[%emt 0:00:08]} c5 {[%emt 0:00:02]} 2. Nf3 {[%emt 0:00:06]} e6 {[%emt 0:00:04]} 3. d4 {[%emt 0:00:33]} cxd4 {[%emt 0:00:04]} 4. Nxd4 {[%emt 0:00:03]} Nc6 {[%emt 0:00:04]} 5. Nc3 {[%emt 0:00:53]} Qc7 {[%emt 0:00:04]} 6. Be2 {[%emt 0:01:19]} a6 {[%emt 0:00:07]} 7. Nxc6 {[%emt 0:00:11]} bxc6 {[%emt 0:00:29]} 8. Qd3 {[%emt 0:01:00]} d5 {[%emt 0:01:04]} 9. Qg3 {[%emt 0:01:29]} Qxg3 {[%emt 0:00:58]} 10. hxg3 {[%emt 0:00:06]} Nf6 {[%emt 0:04:43]} 11. exd5 {[%emt 0:03:44]} cxd5 {[%emt 0:01:08]} 12. Bf4 {[%emt 0:00:32]} Bb4 {[%emt 0:02:02]} 13. Be5 {[%emt 0:02:39]} Ke7 {[%emt 0:19:46]} 14. O-O-O {[%emt 0:06:21]} Bb7 {[%emt 0:08:57]} 15. f3 {[%emt 0:07:05]} h6 {[%emt 0:04:17]} 16. Rh4 {[%emt 0:06:13]} Bd6 {[%emt 0:07:32]} 17. Bxd6+ {[%emt 0:05:00]} Kxd6 {[%emt 0:00:07]} 18. Na4 {[%emt 0:07:06]} Bc6 {[%emt 0:48:02]} 19. Nb6 {[%emt 0:02:45]} Rab8 {[%emt 0:00:00]} 20. Nc4+ {[%emt 0:01:53]} Ke7 {[%emt 0:00:00]} 21. Ne5 {[%emt 0:02:44]} Bb5 {[%emt 0:00:00]} 22. Bxb5 {[%emt 0:07:19]} Rxb5 {[%emt 0:00:00]} 23. Ra4 {[%emt 0:00:31]} Rb6 {[%emt 0:00:00]} 24. Rd3 {[%emt 0:04:44]} Nd7 {[%emt 0:00:00]} 25. Nxd7 {[%emt 0:01:50]} Kxd7 {[%emt 0:00:00]} 26. Rda3 {[%emt 0:01:49]} Ra8 {[%emt 0:00:00]} 27. Ra5 {[%emt 0:03:20]} Ra7 {[%emt 0:00:00]} 28. c3 {[%emt 0:01:22]} Kc6 {[%emt 0:00:00]} 29. Kc2 {[%emt 0:00:29]} Kb7 {[%emt 0:00:00]} 30. b4 {[%emt 0:07:52]} Ra8 {[%emt 0:00:00]} 31. Rc5 {[%emt 0:00:58]} Rc8 {[%emt 0:00:00]} 32. Rxc8 {[%emt 0:01:05]} Kxc8 {[%emt 0:00:00]} 33. Kd3 {[%emt 0:00:07]} Kb7 {[%emt 0:00:00]} 34. Kd4 {[%emt 0:02:04]} Rc6 {[%emt 0:00:00]} 35. Ra5 {[%emt 0:02:59]} Rc4+ {[%emt 0:00:00]} 36. Kd3 {[%emt 0:00:06]} Kb6 {[%emt 0:00:00]} 37. Ra3 {[%emt 0:01:14]} 1/2-1/2

[Event "British Championship 2024"]
[Site "Hull"]
[Date "2024.07.31"]
[Round "3.35"]
[White "Murawski, Jan"]
[Black "Sivanandan, Bodhana"]
[Result "1/2-1/2"]
[Annotator "RC"]
[ECO "D52"]
[WhiteElo "2134"]
[BlackElo "2110"]
[PlyCount "147"]
[EventDate "2024.07.31"]
[EventCountry "GBR"]
[SourceTitle "playchess.com"]
[Source "ChessBase"]
[SourceQuality "1"]
[TimeControl "40/5400+30:1800+30"]

1. d4 {[%emt 0:00:03]} d5 {[%emt 0:00:21]} 2. c4 {[%emt 0:00:04]} c6 {[%emt 0:00:28]} 3. Nc3 {[%emt 0:00:03]} Nf6 {[%emt 0:00:33]} 4. Nf3 {[%emt 0:00:03]} e6 {[%emt 0:00:36]} 5. Bg5 {[%emt 0:00:09]} Nbd7 {[%emt 0:00:35]} 6. e3 {[%emt 0:00:03]} Qa5 {[%emt 0:00:36]} 7. Nd2 {[%emt 0:00:08]} Bb4 {[%emt 0:00:50]} 8. Qc2 {[%emt 0:00:09]} dxc4 {[%emt 0:00:58]} 9. Bxf6 {[%emt 0:00:10]} Nxf6 {[%emt 0:00:37]} 10. Nxc4 {[%emt 0:00:07]} Qc7 {[%emt 0:00:24]} 11. Be2 {[%emt 0:00:31]} c5 {[%emt 0:00:59]} 12. O-O {[%emt 0:11:57]} Bd7 {[%emt 0:02:27]} 13. a3 {[%emt 0:13:26]} Bxc3 {[%emt 0:03:00]} 14. Qxc3 {[%emt 0:02:10]} cxd4 {[%emt 0:11:32]} 15. Qxd4 {[%emt 0:01:47]} O-O {[%emt 0:01:02]} 16. Rac1 {[%emt 0:05:20]} Bc6 {[%emt 0:02:18]} 17. Ne5 {[%emt 0:05:50]} Rfd8 {[%emt 0:04:20]} 18. Qf4 {[%emt 0:04:58]} Rac8 {[%emt 0:13:08]} 19. Bf3 {[%emt 0:10:34]} Qb6 {[%emt 0:12:00]} 20. Bxc6 {[%emt 0:10:50]} bxc6 {[%emt 0:00:33]} 21. b4 {[%emt 0:02:08]} c5 {[%emt 0:10:46]} 22. Qc4 {[%emt 0:02:56]} Qb8 {[%emt 0:05:36]} 23. Nf3 {[%emt 0:06:16]} cxb4 {[%emt 0:05:43]} 24. Qxb4 {[%emt 0:01:12]} Qxb4 {[%emt 0:02:18]} 25. axb4 {[%emt 0:00:04]} Rxc1 {[%emt 0:00:38]} 26. Rxc1 {[%emt 0:00:02]} Nd5 {[%emt 0:01:32]} 27. Rd1 {[%emt 0:22:13]} Rc8 {[%emt 0:01:41]} 28. Nd4 {[%emt 0:00:43]} Nxb4 {[%emt 0:01:21]} 29. h4 {[%emt 0:00:30]} g6 {[%emt 0:01:22]} 30. Ra1 {[%emt 0:00:23]} Ra8 {[%emt 0:01:40]} 31. Nb5 {[%emt 0:00:36]} a6 {[%emt 0:02:04]} 32. Ra4 {[%emt 0:00:31]} Rb8 {[%emt 0:00:55]} 33. Nd6 {[%emt 0:00:27]} Kf8 {[%emt 0:01:23]} 34. Ne4 {[%emt 0:00:28]} Ke7 {[%emt 0:00:42]} 35. g4 {[%emt 0:00:30]} f5 {[%emt 0:02:02]} 36. gxf5 {[%emt 0:00:31]} gxf5 {[%emt 0:00:31]} 37. Ng5 {[%emt 0:00:33]} h6 {[%emt 0:01:00]} 38. Nf3 {[%emt 0:00:01]} Kd6 {[%emt 0:00:49]} 39. Nd4 {[%emt 0:00:07]} Rb6 {[%emt 0:00:40]} 40. Ra1 {[%emt 0:01:13]} Nc6 {[%emt 0:02:01]} 41. Ne2 {[%emt 0:06:14]} a5 {[%emt 0:04:50]} 42. Rd1+ {[%emt 0:00:34]} Kc7 {[%emt 0:02:22]} 43. Rc1 {[%emt 0:01:58]} Kd6 {[%emt 0:04:22]} 44. Rd1+ {[%emt 0:01:01]} Ke7 {[%emt 0:00:12]} 45. Ra1 {[%emt 0:01:42]} Rb4 {[%emt 0:01:50]} 46. Nf4 {[%emt 0:02:34]} a4 {[%emt 0:04:54]} 47. Nd3 {[%emt 0:01:48]} Rg4+ {[%emt 0:00:33]} 48. Kf1 {[%emt 0:01:31]} Rxh4 {[%emt 0:00:12]} 49. Ra3 {[%emt 0:01:20]} e5 {[%emt 0:05:47]} 50. Nb2 {[%emt 0:02:28]} e4 {[%emt 0:01:30]} 51. Nc4 {[%emt 0:02:10]} Rh1+ {[%emt 0:01:56]} 52. Kg2 {[%emt 0:01:41]} Rb1 {[%emt 0:00:22]} 53. Rxa4 {[%emt 0:00:45]} Nb4 {[%emt 0:05:14]} 54. Nd2 {[%emt 0:01:38]} Rd1 {[%emt 0:02:26]} 55. Nxe4 {[%emt 0:01:59]} Nd3 {[%emt 0:03:23]} 56. Ng3 {[%emt 0:01:50]} Rd2 {[%emt 0:01:36]} 57. Nxf5+ {[%emt 0:00:38]} Kf6 {[%emt 0:00:09]} 58. Nxh6 {[%emt 0:00:26]} Rxf2+ {[%emt 0:00:25]} 59. Kg3 {[%emt 0:00:25]} Rf1 {[%emt 0:01:00]} 60. Ng4+ {[%emt 0:05:03]} Kf7 {[%emt 0:01:13]} 61. Rd4 {[%emt 0:00:30]} Nc5 {[%emt 0:00:26]} 62. Nh2 {[%emt 0:00:32]} Rg1+ {[%emt 0:00:21]} 63. Kf2 {[%emt 0:00:08]} Ra1 {[%emt 0:00:13]} 64. Kf3 {[%emt 0:01:06]} Ne6 {[%emt 0:00:28]} 65. Rd5 {[%emt 0:00:11]} Ra4 {[%emt 0:00:24]} 66. Ng4 {[%emt 0:00:34]} Kg6 {[%emt 0:00:28]} 67. Ne5+ {[%emt 0:01:45]} Kf6 {[%emt 0:00:08]} 68. Nd7+ {[%emt 0:00:20]} Ke7 {[%emt 0:00:20]} 69. Ne5 {[%emt 0:01:17]} Ng5+ {[%emt 0:00:28]} 70. Kg3 {[%emt 0:00:50]} Ne4+ {[%emt 0:00:19]} 71. Kg2 {[%emt 0:00:18]} Ke6 {[%emt 0:00:16]} 72. Rb5 {[%emt 0:00:39]} Nd6 {[%emt 0:00:47]} 73. Nd3 {[%emt 0:00:45]} Nxb5 {[%emt 0:01:18]} 74. Nc5+ {[%emt 0:00:05]} 1/2-1/2

[Event "British Championship 2024"]
[Site "Hull"]
[Date "2024.07.31"]
[Round "3.36"]
[White "Brewer, Callum D"]
[Black "Rida, Ruqayyah"]
[Result "1-0"]
[Annotator "RC"]
[ECO "C45"]
[WhiteElo "2161"]
[BlackElo "1962"]
[PlyCount "145"]
[EventDate "2024.07.31"]
[EventCountry "GBR"]
[SourceTitle "playchess.com"]
[Source "ChessBase"]
[SourceQuality "1"]
[TimeControl "40/5400+30:1800+30"]

1. e4 {[%emt 0:00:03]} e5 {[%emt 0:00:07]} 2. Nf3 {[%emt 0:00:01]} Nc6 {[%emt 0:00:07]} 3. d4 {[%emt 0:00:02]} exd4 {[%emt 0:00:09]} 4. Nxd4 {[%emt 0:00:02]} Nf6 {[%emt 0:00:11]} 5. Nxc6 {[%emt 0:00:11]} bxc6 {[%emt 0:00:19]} 6. e5 {[%emt 0:00:01]} Qe7 {[%emt 0:00:14]} 7. Qe2 {[%emt 0:00:02]} Nd5 {[%emt 0:00:17]} 8. h4 {[%emt 0:00:01]} d6 {[%emt 0:03:08]} 9. c4 {[%emt 0:00:28]} Nb6 {[%emt 0:02:46]} 10. exd6 {[%emt 0:00:55]} cxd6 {[%emt 0:02:03]} 11. Be3 {[%emt 0:01:47]} Be6 {[%emt 0:03:42]} 12. Qc2 {[%emt 0:01:49]} f5 {[%emt 0:06:06]} 13. Bg5 {[%emt 0:20:38]} Qf7 {[%emt 0:04:16]} 14. Nd2 {[%emt 0:01:31]} Be7 {[%emt 0:10:24]} 15. Bd3 {[%emt 0:02:51]} O-O {[%emt 0:04:24]} 16. O-O-O {[%emt 0:07:58]} Nd7 {[%emt 0:14:28]} 17. Nf3 {[%emt 0:10:27]} Bf6 {[%emt 0:04:21]} 18. Bxf6 {[%emt 0:25:54]} Qxf6 {[%emt 0:03:02]} 19. Ng5 {[%emt 0:00:05]} Nc5 {[%emt 0:05:06]} 20. Rhe1 {[%emt 0:03:42]} Rae8 {[%emt 0:08:14]} 21. Re2 {[%emt 0:04:20]} h6 {[%emt 0:03:08]} 22. Nf3 {[%emt 0:01:04]} Rb8 {[%emt 0:04:45]} 23. Red2 {[%emt 0:08:58]} Rb4 {[%emt 0:03:14]} 24. Qc3 {[%emt 0:09:01]} Nxd3+ {[%emt 0:01:00]} 25. Qxd3 {[%emt 0:00:02]} Rxc4+ {[%emt 0:00:46]} 26. Kb1 {[%emt 0:01:02]} Bd5 {[%emt 0:00:31]} 27. Ka1 {[%emt 0:00:25]} Ra4 {[%emt 0:02:33]} 28. a3 {[%emt 0:00:02]} Rb8 {[%emt 0:00:55]} 29. Nd4 {[%emt 0:00:41]} Be4 {[%emt 0:03:29]} 30. Qc3 {[%emt 0:00:27]} Qf7 {[%emt 0:09:34]} 31. f3 {[%emt 0:00:52]} Rc4 {[%emt 0:00:27]} 32. Qe3 {[%emt 0:00:25]} Bd5 {[%emt 0:00:09]} 33. Qf4 {[%emt 0:00:34]} Qb7 {[%emt 0:01:03]} 34. Qe3 {[%emt 0:00:30]} Rf8 {[%emt 0:01:08]} 35. g4 {[%emt 0:00:31]} f4 {[%emt 0:00:44]} 36. Qe2 {[%emt 0:00:36]} Ra4 {[%emt 0:00:40]} 37. Nf5 {[%emt 0:00:14]} Qb3 {[%emt 0:00:50]} 38. Ne7+ {[%emt 0:00:21]} Kh7 {[%emt 0:00:30]} 39. Nxd5 {[%emt 0:00:24]} cxd5 {[%emt 0:00:23]} 40. Rxd5 {[%emt 0:01:01]} Rb8 {[%emt 0:00:45]} 41. Qd3+ {[%emt 0:02:15]} Kg8 {[%emt 0:05:24]} 42. Qxb3 {[%emt 0:00:27]} Rxb3 {[%emt 0:00:05]} 43. R1d3 {[%emt 0:00:13]} Ra5 {[%emt 0:02:32]} 44. Rxd6 {[%emt 0:01:40]} Rxd3 {[%emt 0:00:33]} 45. Rxd3 {[%emt 0:00:04]} Kf7 {[%emt 0:01:38]} 46. Rd4 {[%emt 0:08:03]} g5 {[%emt 0:01:45]} 47. hxg5 {[%emt 0:00:08]} hxg5 {[%emt 0:00:05]} 48. Ka2 {[%emt 0:00:48]} Re5 {[%emt 0:00:23]} 49. Rd3 {[%emt 0:00:38]} Re3 {[%emt 0:00:38]} 50. Rc3 {[%emt 0:01:21]} Ke6 {[%emt 0:01:01]} 51. Kb3 {[%emt 0:00:37]} Ke5 {[%emt 0:00:34]} 52. Kc4 {[%emt 0:01:15]} Re2 {[%emt 0:00:23]} 53. b4 {[%emt 0:01:29]} Rd2 {[%emt 0:01:29]} 54. Rd3 {[%emt 0:02:06]} Rc2+ {[%emt 0:01:25]} 55. Kb5 {[%emt 0:00:15]} Re2 {[%emt 0:00:42]} 56. a4 {[%emt 0:01:20]} Rb2 {[%emt 0:00:56]} 57. Kc4 {[%emt 0:02:15]} Rc2+ {[%emt 0:02:03]} 58. Kb3 {[%emt 0:00:05]} Re2 {[%emt 0:01:07]} 59. b5 {[%emt 0:04:51]} Re1 {[%emt 0:00:23]} 60. a5 {[%emt 0:01:38]} Rb1+ {[%emt 0:00:19]} 61. Kc4 {[%emt 0:01:05]} Rc1+ {[%emt 0:00:44]} 62. Kb4 {[%emt 0:00:44]} Rb1+ {[%emt 0:00:18]} 63. Rb3 {[%emt 0:00:32]} Re1 {[%emt 0:01:16]} 64. b6 {[%emt 0:02:45]} axb6 {[%emt 0:00:11]} 65. a6 {[%emt 0:00:25]} Kd6 {[%emt 0:00:34]} 66. a7 {[%emt 0:02:08]} Re8 {[%emt 0:00:11]} 67. Kb5 {[%emt 0:00:20]} Kc7 {[%emt 0:00:22]} 68. Ka6 {[%emt 0:00:10]} b5 {[%emt 0:00:46]} 69. Rc3+ {[%emt 0:00:47]} Kd6 {[%emt 0:00:25]} 70. Kb7 {[%emt 0:00:10]} Re7+ {[%emt 0:00:09]} 71. Kb8 {[%emt 0:00:05]} Rxa7 {[%emt 0:00:28]} 72. Kxa7 {[%emt 0:00:06]} b4 {[%emt 0:00:03]} 73. Rc4 {[%emt 0:00:23]} 1-0